fUSD/lending_fUSD_20240929
["ID","MTS","AMOUNT","RATE_DAILY","PERIOD"]
[339402373,1727571038882,-1853.60154362,0.00012889,2]
[339402374,1727571038892,-1296.0,0.00012889,2]
[339402375,1727571038904,-625.0,0.00012889,2]
[339402376,1727571038914,-1263.0,0.00012889,2]
[339402377,1727571038923,-448.0,0.00012889,2]
[339402378,1727571038932,-558.0,0.00012889,2]
[339402379,1727571038941,-810.0,0.00012889,2]
[339402381,1727571038951,-150.0,0.00012889,2]
[339402383,1727571038961,-933.0,0.00012889,2]
[339402385,1727571038970,-1904.0,0.00012889,2]
[339402387,1727571038980,-554.0,0.00012889,2]
[339402389,1727571038989,-3348.0,0.00012889,2]
[339402391,1727571038998,-1910.0,0.00012889,2]
[339402393,1727571039007,-284.036,0.00012889,2]
[339402395,1727571039016,-39.2815531,0.00012889,2]
[339402397,1727571039033,-110.7184469,0.00012889,2]
[339402398,1727571039042,-150.0,0.00012889,2]
[339402399,1727571039052,-279.93512465,0.00012889,2]
[339402400,1727571039063,-1051.74850456,0.00012889,2]
[339402401,1727571039074,-1000.91952916,0.00012889,2]
[339402402,1727571039085,-264.24,0.00012889,2]
[339402403,1727571039097,-10903.15684163,0.00012889,2]
[339402404,1727571039107,-152.0,0.00012889,2]
[339402405,1727571039117,-150.0,0.00012889,2]
[339402406,1727571039127,-1148.0,0.00012889,2]
[339402407,1727571039136,-5871.0,0.00012889,2]
[339402408,1727571039146,-155.0,0.0001289,2]
[339402409,1727571039155,-153.51,0.0001289,2]
[339402410,1727571039164,-153.51,0.0001289,2]
[339402411,1727571039173,-153.51,0.0001289,2]
[339402412,1727571039183,-153.51,0.0001289,2]
[339402413,1727571039192,-153.51,0.0001289,2]
[339402414,1727571039202,-153.51,0.0001289,2]
[339402415,1727571039211,-153.51,0.0001289,2]
[339402416,1727571039220,-153.51,0.0001289,2]
[339402417,1727571039230,-153.51,0.0001289,2]
[339402418,1727571039240,-153.51,0.0001289,2]
[339402419,1727571039249,-153.51,0.0001289,2]
[339402420,1727571039259,-153.51,0.0001289,2]
[339402421,1727571039268,-153.51,0.0001289,2]
[339402422,1727571039277,-153.51,0.0001289,2]
[339402423,1727571039287,-153.51,0.0001289,2]
[339402424,1727571039296,-153.51,0.0001289,2]
[339402425,1727571039305,-153.51,0.0001289,2]
[339402426,1727571039314,-153.51,0.0001289,2]
[339402427,1727571039324,-153.51,0.0001289,2]
[339402428,1727571039334,-153.51,0.0001289,2]
[339402429,1727571039343,-153.51,0.0001289,2]
[339402430,1727571039353,-153.51,0.0001289,2]
[339402431,1727571039363,-153.51,0.0001289,2]
[339402432,1727571039372,-153.51,0.0001289,2]
[339402433,1727571039382,-153.51,0.0001289,2]
[339402434,1727571039391,-153.51,0.0001289,2]
[339402435,1727571039400,-153.51,0.0001289,2]
[339402436,1727571039411,-153.51,0.0001289,2]
[339402437,1727571039420,-153.51,0.0001289,2]
[339402438,1727571039430,-153.51,0.0001289,2]
[339402439,1727571039439,-153.51,0.0001289,2]
[339402440,1727571039448,-153.51,0.0001289,2]
[339402441,1727571039458,-153.51,0.0001289,2]
[339402442,1727571039467,-500.0,0.00012891,2]
[339402443,1727571039478,-179.99,0.00012893,2]
[339402444,1727571039488,-513.89944258,0.00012898,2]
[339402445,1727571039497,-529.93260161,0.00012898,2]
[339402446,1727571039507,-500.0,0.00012898,2]
[339402447,1727571039516,-500.4900931,0.00012898,2]
[339402448,1727571039526,-500.0,0.00012898,2]
[339402449,1727571039537,-218.84745189,0.00012898,2]
[339402450,1727571039547,-613.45,0.00012898,2]
[339402451,1727571039556,-500.0,0.00012898,2]
[339402452,1727571039565,-500.0,0.00012898,2]
[339402453,1727571039575,-500.0,0.00012898,2]
[339402454,1727571039586,-500.0,0.00012898,2]
[339402455,1727571039595,-500.0,0.00012898,2]
[339402456,1727571039604,-500.0,0.00012898,2]
[339402457,1727571039614,-500.0,0.00012898,2]
[339402458,1727571039623,-231.57060513,0.00012898,2]
[339402459,1727571039635,-268.42939487,0.00012898,2]
[339402460,1727571039644,-500.0,0.00012898,2]
[339402461,1727571039653,-293.54843869,0.00012898,2]
[339402462,1727571039822,-206.45156131,0.00012898,2]
[339402463,1727571039832,-500.0,0.00012898,2]
[339402464,1727571039841,-500.0,0.00012898,2]
[339402465,1727571039851,-500.0,0.00012898,2]
[339402466,1727571039860,-500.0,0.00012898,2]
[339402467,1727571039869,-500.0,0.00012898,2]
[339402468,1727571039881,-500.0,0.00012898,2]
[339402469,1727571039891,-500.0,0.00012898,2]
[339402470,1727571039900,-500.0,0.00012898,2]
[339402471,1727571039910,-186.46149278,0.00012898,2]
[339402472,1727571039921,-313.53850722,0.00012898,2]
[339402473,1727571039931,-500.90807882,0.00012898,2]
[339402474,1727571039940,-500.0,0.00012898,2]
[339402475,1727571039949,-50.38465233,0.00012898,2]
[339402476,1727571039961,-449.61534767,0.00012898,2]
[339402477,1727571039970,-500.0,0.00012898,2]
[339402478,1727571039980,-120.54639841,0.00012898,2]
[339402479,1727571039991,-379.45360159,0.00012898,2]
[339402480,1727571040001,-500.0,0.00012898,2]
[339402481,1727571040011,-500.0,0.00012898,2]
[339402482,1727571040021,-500.0,0.00012898,2]
[339402483,1727571040035,-395.70061934,0.00012898,2]
[339402484,1727571040044,-500.0,0.00012898,2]
[339402485,1727571040054,-500.0,0.00012898,2]
[339402486,1727571040064,-500.0,0.00012898,2]
[339402487,1727571040073,-607.7,0.00012898,2]
[339402488,1727571040084,-500.0,0.00012898,2]
[339402490,1727571040093,-502.96760181,0.00012898,2]
[339402491,1727571040103,-500.0,0.00012898,2]
[339402492,1727571040113,-500.0,0.00012898,2]
[339402493,1727571040123,-500.0,0.00012898,2]
[339402494,1727571040132,-500.0,0.00012898,2]
[339402495,1727571040142,-500.0,0.00012898,2]
[339402496,1727571040152,-369.70100306,0.00012898,2]
[339402497,1727571040161,-500.0,0.00012898,2]
[339402498,1727571040171,-630.69916049,0.00012898,2]
[339402499,1727571040180,-394.23,0.00012898,2]
[339402500,1727571040189,-504.78703217,0.00012898,2]
[339402501,1727571040199,-500.0,0.00012898,2]
[339402502,1727571040208,-500.0,0.00012898,2]
[339402503,1727571040217,-500.0,0.00012898,2]
[339402504,1727571040226,-500.0,0.00012898,2]
[339402505,1727571040236,-503.4805733,0.00012898,2]
[339402506,1727571040245,-401.78233454,0.00012898,2]
[339402507,1727571040255,-500.0,0.00012898,2]
[339402508,1727571040264,-500.0,0.00012898,2]
[339402509,1727571040273,-504.88046629,0.00012898,2]
[339402510,1727571040283,-503.07556846,0.00012898,2]
[339402511,1727571040292,-151.0,0.00012899,2]
[339402512,1727571040301,-151.0,0.00012899,2]
[339402513,1727571040311,-151.0,0.00012899,2]
[339402514,1727571040320,-151.0,0.00012899,2]
[339402515,1727571040329,-151.0,0.00012899,2]
[339402516,1727571040339,-151.0,0.00012899,2]
[339402517,1727571040349,-151.0,0.00012899,2]
[339402518,1727571040358,-151.0,0.00012899,2]
[339402519,1727571040368,-151.0,0.00012899,2]
[339402520,1727571040377,-151.364273,0.00012899,2]
[339402521,1727571040386,-454.061881,0.00012899,2]
[339402522,1727571040395,-454.061881,0.00012899,2]
[339402523,1727571040404,-454.061881,0.00012899,2]
[339402524,1727571040415,-454.061881,0.00012899,2]
[339402525,1727571040424,-454.061881,0.00012899,2]
[339402526,1727571040433,-454.061881,0.00012899,2]
[339402527,1727571040442,-230.84006246,0.00012899,2]
[339402528,1727571040452,-390.14001587,0.00012899,2]
[339402529,1727571040465,-609.85998413,0.00012899,2]
[339402530,1727571040474,-500.0,0.00012899,2]
[339402531,1727571040483,-500.0,0.00012899,2]
[339402532,1727571040493,-500.0,0.00012899,2]
[339402533,1727571040502,-285.00121442,0.00012899,2]
[339402534,1727571040512,-500.0,0.00012899,2]
[339402535,1727571040521,-500.0,0.00012899,2]
[339402536,1727571040530,-500.0,0.00012899,2]
[339402537,1727571040540,-414.3526657,0.00012899,2]
[339402539,1727571040551,-85.6473343,0.00012899,2]
[339402541,1727571040561,-481.37520009,0.00012899,2]
[339402542,1727571040572,-18.62479991,0.00012899,2]
[339402543,1727571040583,-500.0,0.00012899,2]
[339402544,1727571040592,-500.0,0.00012899,2]
[339402546,1727571040601,-247.62588997,0.00012899,2]
[339402548,1727571040613,-252.37411003,0.00012899,2]
[339402549,1727571040623,-211.90588994,0.00012899,2]
[339402552,1727571040642,-288.09411006,0.00012899,2]
[339402554,1727571040652,-517.36207013,0.00012899,2]
[339402556,1727571040661,-500.0,0.00012899,2]
[339402558,1727571040671,-587.50586437,0.00012899,2]
[339402560,1727571040681,-450.57149283,0.00012899,2]
[339402562,1727571040690,-501.79996987,0.00012899,2]
[339402564,1727571040700,-500.0,0.00012899,2]
[339402566,1727571040709,-500.0,0.00012899,2]
[339402568,1727571040719,-500.0,0.00012899,2]
[339402570,1727571040728,-500.0,0.00012899,2]
[339402572,1727571040737,-218.62893827,0.00012899,2]
[339402574,1727571040748,-281.37106173,0.00012899,2]
[339402576,1727571040757,-38.73191704,0.00012899,2]
[339402578,1727571040769,-461.26808296,0.00012899,2]
[339402580,1727571040778,-500.0,0.00012899,2]
[339402582,1727571040788,-250.71417439,0.00012899,2]
[339402584,1727571040800,-249.28582561,0.00012899,2]
[339402586,1727571040809,-500.0,0.00012899,2]
[339402588,1727571040818,-500.0,0.00012899,2]
[339402590,1727571040828,-500.0,0.00012899,2]
[339402592,1727571040837,-305.86846479,0.00012899,2]
[339402595,1727571040849,-194.13153521,0.00012899,2]
[339402597,1727571040858,-576.24,0.00012899,2]
[339402599,1727571040867,-2000.0,0.00012899,2]
[339402601,1727571040877,-297.29993757,0.00012899,2]
[339402603,1727571040888,-202.70006243,0.00012899,2]
[339402605,1727571040898,-500.0,0.00012899,2]
[339402607,1727571040907,-260.80344145,0.00012899,2]
[339402609,1727571040917,-585.0,0.000129,2]
[339402611,1727571040927,-151.0,0.000129,2]
[339402613,1727571040937,-265.079154,0.000129,2]
[339402615,1727571040946,-151.0,0.000129,2]
[339402617,1727571040956,-151.0,0.000129,2]
[339402619,1727571040966,-151.0,0.000129,2]
[339402621,1727571040976,-151.0,0.000129,2]
[339402623,1727571040987,-151.0,0.000129,2]
[339402625,1727571040997,-151.0,0.000129,2]
[339402627,1727571041006,-151.0,0.000129,2]
[339402629,1727571041015,-361.427853,0.000129,2]
[339402649,1727571041203,-361.427853,0.000129,2]
[339402651,1727571041214,-361.427853,0.000129,2]
[339402653,1727571041223,-361.427853,0.000129,2]
[339402655,1727571041233,-151.0,0.000129,2]
[339402657,1727571041242,-151.0,0.000129,2]
[339402659,1727571041251,-151.0,0.000129,2]
[339402661,1727571041261,-278.394161,0.000129,2]
[339402663,1727571041270,-151.0,0.000129,2]
[339402665,1727571041280,-152.31702,0.000129,2]
[339402666,1727571041290,-152.31702,0.000129,2]
[339402667,1727571041300,-152.31702,0.000129,2]
[339402668,1727571041310,-152.31702,0.000129,2]
[339402669,1727571041319,-151.0,0.000129,2]
[339402670,1727571041330,-151.0,0.000129,2]
[339402671,1727571041339,-151.0,0.000129,2]
[339402672,1727571041348,-280.333687,0.000129,2]
[339402673,1727571041358,-111590.80927787,0.000129,2]
[339402674,1727571041370,-312.004999,0.000129,2]
[339402675,1727571041382,-7931.78778654,0.000129,2]
[339402676,1727571041393,-6351178.32128044,0.000129,2]
[339402678,1727571041403,-151.0,0.000129,2]
[339402680,1727571041412,-151.0,0.000129,2]
[339402682,1727571041422,-151.0,0.000129,2]
[339402684,1727571041431,-151.0,0.000129,2]
[339402686,1727571041440,-151.0,0.000129,2]
[339402687,1727571041450,-151.0,0.000129,2]
[339402690,1727571041459,-454.061881,0.000129,2]
[339402691,1727571041468,-454.061881,0.000129,2]
[339402693,1727571041478,-454.061881,0.000129,2]
[339402695,1727571041487,-454.061881,0.000129,2]
[339402697,1727571041498,-500.0,0.000129,2]
[339402699,1727571041507,-308.36,0.000129,2]
[339402701,1727571041516,-1012.8,0.000129,2]
[339402703,1727571041526,-847.0,0.000129,2]
[339402705,1727571041535,-152.05099156,0.000129,2]
[339402707,1727571041545,-152.05099156,0.000129,2]
[339402709,1727571041555,-152.05099156,0.000129,2]
[339402711,1727571041564,-152.55,0.000129,2]
[339402713,1727571041574,-176.50516421,0.000129,2]
[339402715,1727571041585,-177.0,0.000129,2]
[339402717,1727571041595,-157.06014596,0.000129,2]
[339402719,1727571041605,-157.06014596,0.000129,2]
[339402721,1727571041614,-157.06014596,0.000129,2]
[339402723,1727571041624,-157.06014596,0.000129,2]
[339402725,1727571041634,-157.06014596,0.000129,2]
[339402727,1727571041644,-157.06014596,0.000129,2]
[339402730,1727571041654,-157.06014596,0.000129,2]
[339402732,1727571041663,-157.06014596,0.000129,2]
[339402733,1727571041673,-157.56,0.000129,2]
[339402735,1727571041682,-168.23782649,0.000129,2]
[339402738,1727571041691,-168.73,0.000129,2]
[339402740,1727571041700,-168.42532649,0.000129,2]
[339402741,1727571041710,-168.42532649,0.000129,2]
[339402743,1727571041718,-168.42532649,0.000129,2]
[339402745,1727571041728,-168.42532649,0.000129,2]
[339402747,1727571041737,-168.42532649,0.000129,2]
[339402749,1727571041747,-168.42532649,0.000129,2]
[339402751,1727571041759,-168.42532649,0.000129,2]
[339402753,1727571041768,-168.92,0.000129,2]
[339402755,1727571041777,-1853.60154362,0.000129,2]
[339402757,1727571041787,-492.3,0.000129,2]
[339402759,1727571041796,-35743.26038383,0.00012921,2]
[339402761,1727571041806,-847.0,0.00012927,2]
[339402763,1727571041815,-443.40171701,0.00012946,2]
[339402765,1727571041825,-847.0,0.00012955,2]
[339402767,1727571041836,-150.0,0.00012969,2]
[339402769,1727571041846,-153.51,0.0001297,2]
[339402771,1727571041856,-153.51,0.0001297,2]
[339402773,1727571041865,-153.51,0.0001297,2]
[339402775,1727571041874,-180.0,0.0001297,2]
[339402777,1727571041884,-500.0,0.0001298,2]
[339402779,1727571041893,-500.0,0.0001298,2]
[339402782,1727571041905,-500.0,0.0001298,2]
[339402784,1727571041915,-500.0,0.0001298,2]
[339402786,1727571041925,-500.0,0.0001298,2]
[339402788,1727571041935,-464.49,0.0001298,2]
[339402789,1727571041944,-491230.52424498,0.0001298,3]
[339402791,1727571041954,-151.0,0.0001298,2]
[339402793,1727571041963,-151.0,0.0001298,2]
[339402795,1727571041972,-151.0,0.0001298,2]
[339402797,1727571041982,-215.858866,0.0001298,2]
[339402799,1727571041992,-361.427853,0.0001298,2]
[339402801,1727571042001,-361.427853,0.0001298,2]
[339402803,1727571042010,-151.0,0.0001298,2]
[339402805,1727571042019,-69474.38265874,0.0001298,3]
[339402807,1727571042030,-152.31702,0.0001298,2]
[339402809,1727571042039,-152.31702,0.0001298,2]
[339402811,1727571042048,-151.0,0.0001298,2]
[339402813,1727571042058,-151.0,0.0001298,2]
[339402815,1727571042068,-151.0,0.0001298,2]
[339402817,1727571042077,-454.061881,0.0001298,2]
[339402819,1727571042087,-454.061881,0.0001298,2]
[339402821,1727571042098,-150.0,0.00012982,2]
[339402822,1727571042107,-847.0,0.00012982,2]
[339402824,1727571042117,-153.51,0.00012989,2]
[339402826,1727571042127,-153.51,0.0001299,2]
[339402828,1727571042136,-153.51,0.0001299,2]
[339402830,1727571042146,-153.51,0.0001299,2]
[339402832,1727571042155,-500.0,0.0001299,2]
[339402834,1727571042165,-500.0,0.0001299,2]
[339402836,1727571042174,-500.0,0.0001299,2]
[339402838,1727571042183,-500.0,0.0001299,2]
[339402840,1727571042193,-500.0,0.0001299,2]
[339402842,1727571042202,-153.51,0.0001299,2]
[339402844,1727571042212,-222.934713,0.00012994,2]
[339402846,1727571042221,-191.212685,0.00012994,2]
[339402848,1727571042230,-645.63967,0.00012994,2]
[339402850,1727571042239,-249.263602,0.00012995,2]
[339402852,1727571042248,-10572.02887541,0.00012999,2]
[339402854,1727571042258,-1000.0,0.00012999,2]
[339402856,1727571042267,-1000.0,0.00012999,2]
[339402858,1727571042276,-1000.0,0.00012999,2]
[339402859,1727571042285,-2336.24914764,0.00012999,2]
[339402861,1727571042295,-1016.8073,0.00012999,2]
[339402863,1727571042305,-1000.0,0.00012999,2]
[339402865,1727571042314,-6166.21729319,0.00012999,2]
[339402867,1727571042323,-1000.0,0.00012999,2]
[339402869,1727571042334,-1000.0,0.00012999,2]
[339402871,1727571042343,-1000.0,0.00012999,2]
[339402873,1727571042352,-49760.0,0.00013,2]
[339402875,1727571042362,-1052.44144134,0.00013,2]
[339402877,1727571042372,-584541.18176147,0.00013,2]
[339402879,1727571042382,-258779.91202579,0.00013,2]
[339402881,1727571042395,-1471.15762429,0.00013,2]
[339402884,1727571042406,-407.31829927,0.00013,2]
[339402886,1727571042417,-535.85788251,0.00013,2]
[339402888,1727571042430,-1534.61932229,0.00013,2]
[339402890,1727571042441,-1340.90112219,0.00013,2]
[339402892,1727571042452,-19357.1500304,0.00013,2]
[339402894,1727571042463,-18527.41837375,0.00013,2]
[339402897,1727571042475,-1031.00172718,0.00013,2]
[339402899,1727571042486,-1818.9,0.00013,2]
[339402901,1727571042498,-11427.13151269,0.00013,2]
[339402903,1727571042509,-1086.34670665,0.00013,2]
[339402905,1727571042520,-12979.91540056,0.00013,2]
[339402907,1727571042531,-2837.74696614,0.00013,2]
[339402909,1727571042542,-1952.46287706,0.00013,2]
[339402980,1727571043297,-2624.72086397,0.00012245,2]
[339402981,1727571043306,-1684.90915535,0.00013,2]
[339403082,1727571046419,-160.139959,0.00012375,2]
[339403083,1727571046428,-1925.37025261,0.00013,2]
[339403087,1727571086169,400.61,0.00010156,2]
[339403088,1727571200147,7103.16,0.00011,2]
[339403089,1727571285232,683.0,0.00022,120]
[339403095,1727571534639,180.99,0.00013918,30]
[339403096,1727571535247,222.92,0.00010959,2]
[339403099,1727571556099,1091494.28,0.00011,2]
[339403100,1727571556124,1251483.03406155,0.00011,2]
[339403101,1727571556146,2000000.0,0.00011,2]
[339403102,1727571556169,2000000.0,0.00011,2]
[339403103,1727571556200,11196.42546373,0.00011,2]
[339403104,1727571556395,-295.32213025,0.00011,2]
[339403105,1727571558209,-150.0,0.00011,2]
[339403106,1727571558858,-150.0,0.00011,2]
[339403107,1727571560302,-150.0,0.00011,2]
[339403108,1727571560810,-150.0,0.00011,2]
[339403109,1727571562672,-150.0,0.00011,2]
[339403110,1727571563176,-150.0,0.00011,2]
[339403111,1727571563600,-150.0,0.00011,2]
[339403112,1727571564074,-150.0,0.00011,2]
[339403113,1727571564596,-150.0,0.00011,2]
[339403114,1727571565116,-150.0,0.00011,2]
[339403115,1727571565771,-150.0,0.00011,2]
[339403116,1727571566342,-150.0,0.00011,2]
[339403117,1727571567016,-150.0,0.00011,2]
[339403118,1727571567393,-150.0,0.00011,2]
[339403119,1727571567807,-150.0,0.00011,2]
[339403120,1727571568200,-150.0,0.00011,2]
[339403121,1727571568695,-150.0,0.00011,2]
[339403122,1727571570844,-150.0,0.00011,2]
[339403123,1727571571247,-150.0,0.00011,2]
[339403124,1727571571952,-150.0,0.00011,2]
[339403125,1727571572548,-150.0,0.00011,2]
[339403126,1727571573008,-150.0,0.00011,2]
[339403127,1727571573432,-150.0,0.00011,2]
[339403128,1727571596110,150.0,9.936e-05,2]
[339403129,1727571596131,150.0,9.936e-05,2]
[339403130,1727571596152,88.07,9.936e-05,2]
[339403131,1727571597566,-248.92097421,0.00011,2]
[339403132,1727571597972,-251.73,0.00011,2]
[339403133,1727571599178,-250.0,0.00011,2]
[339403134,1727571599917,-250.0,0.00011,2]
[339403135,1727571600518,-241.27,0.00011,2]
[339403136,1727571601225,-194.12,0.00011,2]
[339403137,1727571601814,-182.23,0.00010999,2]
[339403138,1727571602313,-117.77,0.00010999,2]
[339403139,1727571602334,-62.18,0.00010999,2]
[339403145,1727571623356,-152.67,0.0001099,2]
[339403146,1727571629082,644.0,0.00022,120]
[339403148,1727571640118,150.0,0.00010111,2]
[339403149,1727571671660,-87.82,0.00010999,2]
[339403150,1727571671683,-89.29313248,0.00010999,2]
[339403151,1727571672849,-178.27653082,0.00010999,2]
[339403152,1727571675362,-32.4303367,0.00010999,2]
[339403153,1727571675383,-143.1296633,0.00010999,2]
[339403154,1727571676091,-18.45838042,0.00010999,2]
[339403155,1727571676112,-131.54161958,0.00010999,2]
[339403156,1727571676486,-150.0,0.00010999,2]
[339403157,1727571677302,-150.0,0.00010999,2]
[339403158,1727571678107,-68.45838042,0.00010999,2]
[339403159,1727571678130,-81.54161958,0.00010999,2]
[339403160,1727571678591,-150.0,0.00010999,2]
[339403161,1727571679161,-150.0,0.00010999,2]
[339403162,1727571680502,-118.45838042,0.00010999,2]
[339403163,1727571680525,-31.54161958,0.00010999,2]
[339403164,1727571681807,-357.04229562,0.00010999,2]
[339403165,1727571681830,-841.95315307,0.00011,2]
[339403166,1727571681852,-25578.44855131,0.00011,2]
[339403167,1727571690738,150.0,0.00021317,120]
[339403168,1727571692165,-150.0,0.00011,2]
[339403169,1727571692608,-150.0,0.00011,2]
[339403170,1727571694369,-150.0,0.00011,2]
[339403171,1727571696268,-150.0,0.00011,2]
[339403172,1727571696950,-150.0,0.00011,2]
[339403173,1727571697374,-150.0,0.00011,2]
[339403174,1727571697715,-150.0,0.00011,2]
[339403175,1727571698556,-150.0,0.00011,2]
[339403176,1727571698936,-150.0,0.00011,2]
[339403178,1727571699558,-150.0,0.00011,2]
[339403179,1727571699958,-150.0,0.00011,2]
[339403181,1727571700421,-150.0,0.00011,2]
[339403182,1727571701162,-150.0,0.00011,2]
[339403186,1727571703626,-150.0,0.00011,2]
[339403187,1727571704761,-150.0,0.00011,2]
[339403188,1727571705385,-150.0,0.00011,2]
[339403189,1727571706872,-150.0,0.00011,2]
[339403190,1727571708774,-150.0,0.00011,2]
[339403191,1727571709748,-150.0,0.00011,2]
[339403192,1727571710358,-150.0,0.00011,2]
[339403193,1727571710739,-150.0,0.00011,2]
[339403194,1727571711172,-150.0,0.00011,2]
[339403195,1727571712953,-150.0,0.00011,2]
[339403196,1727571714943,-150.0,0.00011,2]
[339403197,1727571715355,-150.0,0.00011,2]
[339403198,1727571715853,-150.0,0.00011,2]
[339403199,1727571716275,-150.0,0.00011,2]
[339403200,1727571716659,-150.0,0.00011,2]
[339403201,1727571717140,-150.0,0.00011,2]
[339403202,1727571717705,-150.0,0.00011,2]
[339403203,1727571718274,-150.0,0.00011,2]
[339403204,1727571718668,-150.0,0.00011,2]
[339403205,1727571719050,-150.0,0.00011,2]
[339403206,1727571719556,-150.0,0.00011,2]
[339403207,1727571720393,-150.0,0.00011,2]
[339403208,1727571722861,-150.0,0.00010999,2]
[339403209,1727571723298,-150.0,0.00010999,2]
[339403210,1727571723862,-150.0,0.00011,2]
[339403211,1727571724771,-150.0,0.00011,2]
[339403212,1727571725201,-150.0,0.00011,2]
[339403213,1727571725681,-150.0,0.00011,2]
[339403214,1727571749210,1279.61547656,0.00022,120]
[339403215,1727571904115,150.0,9.888e-05,2]
[339403216,1727571906012,150.0,9.888e-05,2]
[339403217,1727571914653,150.0,9.888e-05,2]
[339403218,1727571914674,44.75826541,9.888e-05,2]
[339403219,1727571919654,151.7399799,9.888e-05,2]
[339403220,1727571923463,150.0,9.888e-05,2]
[339403221,1727571928319,150.66099431,9.888e-05,2]
[339403222,1727571993042,621.0,0.00022,120]
[339403225,1727572121558,500.0,0.00022,120]
[339403228,1727572168396,171.94,0.00013918,30]
[339403229,1727572213718,150.0,8.708e-05,2]
[339403230,1727572213741,363.79,8.708e-05,2]
[339403233,1727572231408,-1200.0,0.000103,3]
[339403234,1727572231418,-2200.0,0.000104,3]
[339403235,1727572231548,-300.0,0.000104,3]
[339403236,1727572231557,-41.42630098,0.000105,3]
[339403237,1727572231572,-1096.68112958,0.000105,3]
[339403238,1727572231583,-2661.89256944,0.000105,3]
[339403239,1727572231592,-1868.64133876,0.000106,3]
[339403240,1727572237532,-3231.35866124,0.000106,3]
[339403241,1727572237542,-6400.0,0.000107,3]
[339403242,1727572237552,-1200.0,0.000108,3]
[339403243,1727572237561,-1200.0,0.000109,3]
[339403244,1727572237571,-162.64,0.00010959,2]
[339403245,1727572237580,-513.79,0.00010972,2]
[339403246,1727572237590,-300.0,0.00010989,2]
[339403247,1727572237599,-3511.48368572,0.0001099,2]
[339403271,1727572238561,-9389.64173246,0.0001099,2]
[339403272,1727572238571,-2000.0,0.00010999,2]
[339403273,1727572238580,-673.56252246,0.00011,2]
[339403274,1727572238590,-75908.9250569,0.00011,2]
[339403275,1727572239461,-338.0226125,0.00011,2]
[339403276,1727572239472,-27089.17785513,0.00011,2]
[339403277,1727572239483,-1518.24201,0.00011,2]
[339403278,1727572239496,-1363.68834929,0.00011,2]
[339403279,1727572239506,-2023.404,0.00011,2]
[339403280,1727572239517,-359.58943198,0.00011,2]
[339403281,1727572239528,-643.23488832,0.00011,2]
[339403282,1727572239538,-1371.18752918,0.00011,2]
[339403283,1727572239549,-4285.81638443,0.00011,2]
[339403284,1727572239560,-140831.78781609,0.00011,2]
[339403285,1727572239571,-587.72819476,0.00011,2]
[339403286,1727572239582,-3439.77144982,0.00011,2]
[339403287,1727572239593,-795.68756049,0.00011,2]
[339403288,1727572239604,-39726.86026963,0.00011,2]
[339403289,1727572239620,-1596.3,0.00011,2]
[339403290,1727572239632,-5114.45369736,0.00011,2]